[Event "Weekendtournooi Groningen & PK NOSBO"]
[Site "Groningen, Netherlands"]
[Date "2023.05.20"]
[Round "5.6"]
[White "Jovanovic, Luka L"]
[Black "Hommes, Elmar"]
[Result "0-1"]
[TimeControl "90min + 30sec/move"]
[WhiteElo "1384"]
[BlackElo "2050"]

1. d4 {[%clk 01:30:45]} {[%emt 00:01:02]} d5 {[%clk 01:30:51]} 2. c4 {[%clk
01:31:08]} c6 {[%clk 01:31:15]} 3. Nf3 {[%clk 01:31:22]} Nf6 {[%clk 01:31:33]}
{[%emt 00:00:06]} 4. Nc3 {[%clk 01:31:39]} {[%emt 00:00:13]} e6 {[%clk
01:31:54]} {[%emt 00:00:09]} 5. e3 {[%clk 01:31:55]} {[%emt 00:00:39]} Nbd7
{[%clk 01:32:15]} {[%emt 00:00:13]} 6. Qc2 {[%clk 01:32:07]} Bd6 {[%clk
01:32:25]} {[%emt 00:00:31]} 7. Bd3 {[%clk 01:31:35]} {[%emt 00:00:36]} O-O
{[%clk 01:32:45]} {[%emt 00:00:35]} 8. O-O {[%clk 01:31:28]} {[%emt 00:00:46]}
dxc4 {[%clk 01:33:09]} {[%emt 00:00:02]} 9. Bxc4 {[%clk 01:31:47]} {[%emt
00:00:15]} b5 {[%clk 01:33:34]} 10. Bd3 {[%clk 01:31:36]} {[%emt 00:00:15]} Bb7
{[%clk 01:33:56]} {[%emt 00:00:07]} 11. Rd1 {[%clk 01:29:44]} {[%emt 00:02:21]}
Qc7 {[%clk 01:33:34]} {[%emt 00:01:34]} 12. a3 {[%clk 01:28:04]} {[%emt
00:01:28]} a5 {[%clk 01:28:09]} {[%emt 00:06:10]} 13. Bd2 {[%clk 01:26:10]}
{[%emt 00:02:31]} Rfc8 {[%clk 01:22:25]} {[%emt 00:05:52]} 14. h3 {[%clk
01:21:03]} {[%emt 00:06:17]} Qb8 {[%clk 01:18:38]} {[%emt 00:03:37]} 15. Qb3
{[%clk 01:17:54]} {[%emt 00:03:49]} b4 {[%clk 01:12:34]} {[%emt 00:06:24]} 16.
axb4 {[%clk 01:15:45]} {[%emt 00:02:56]} axb4 {[%clk 01:12:53]} {[%emt
00:00:21]} 17. Ne4 {[%clk 01:15:31]} {[%emt 00:00:18]} Nxe4 {[%clk 01:09:32]}
{[%emt 00:03:50]} 18. Bxe4 {[%clk 01:11:11]} {[%emt 00:04:54]} Nf6 {[%clk
01:07:06]} {[%emt 00:02:54]} 19. Bd3 {[%clk 01:08:49]} {[%emt 00:02:52]} c5
{[%clk 01:06:53]} {[%emt 00:00:42]} 20. Be2 {[%clk 01:02:21]} {[%emt 00:06:58]}
Bd5 {[%clk 01:05:02]} {[%emt 00:02:22]} 21. Bc4 {[%clk 01:01:12]} {[%emt
00:02:11]} Bxf3 {[%clk 01:04:40]} {[%emt 00:00:18]} 22. gxf3 {[%clk 01:01:32]}
{[%emt 00:00:50]} cxd4 {[%clk 01:04:43]} 23. Rxa8 {[%clk 01:01:36]} {[%emt
00:00:15]} Qxa8 {[%emt 00:00:09]} 24. Bxe6 {[%clk 01:01:48]} {[%emt 00:00:39]}
fxe6 {[%clk 01:03:52]} {[%emt 00:01:19]} 25. Qxe6+ {[%clk 01:01:58]} {[%emt
00:00:23]} Kh8 {[%clk 01:04:15]} {[%emt 00:00:08]} 26. Qxd6 {[%clk 01:02:11]}
{[%emt 00:00:17]} Qxf3 {[%clk 01:02:39]} {[%emt 00:02:02]} 27. Rf1 {[%clk
00:55:46]} {[%emt 00:06:55]} Ne4 {[%clk 00:53:01]} {[%emt 00:10:08]} 28. Qxd4
{[%clk 00:54:23]} {[%emt 00:01:52]} Ng5 {[%clk 00:51:51]} {[%emt 00:01:43]} 29.
Qh4 {[%clk 00:48:36]} {[%emt 00:06:12]} Qd5 {[%clk 00:48:13]} {[%emt 00:04:11]}
30. f4 {[%clk 00:40:24]} {[%emt 00:09:01]} Nf3+ {[%clk 00:48:13]} {[%emt
00:00:13]} 31. Rxf3 {[%clk 00:40:44]} {[%emt 00:00:14]} Qxf3 {[%clk 00:48:36]}
32. Qg4 {[%clk 00:40:16]} {[%emt 00:00:59]} Qxg4+ {[%clk 00:48:57]} {[%emt
00:00:07]} 33. hxg4 {[%clk 00:40:41]} {[%emt 00:00:32]} b3 {[%clk 00:49:19]}
{[%emt 00:00:09]} 34. Bc3 {[%clk 00:40:46]} {[%emt 00:00:13]} Rxc3 {[%clk
00:49:41]} {[%emt 00:00:18]} 0-1

[Event "Weekendtournooi Groningen & PK NOSBO"]
[Site "Groningen, Netherlands"]
[Date "2023.05.20"]
[Round "5.7"]
[White "Labruyere, Roger"]
[Black "Huiskes, Mathijs"]
[Result "1-0"]
[TimeControl "90min + 30sec/move"]
[WhiteElo "2169"]
[BlackElo "1746"]

1. e4 {[%clk 01:30:54]} {[%emt 00:00:13]} Nf6 {[%clk 01:30:58]} 2. e5 {[%clk
01:31:18]} {[%emt 00:00:27]} Nd5 {[%clk 01:31:23]} {[%emt 00:00:09]} 3. d4
{[%clk 01:31:35]} d6 {[%clk 01:31:48]} 4. Nf3 {[%clk 01:31:56]} {[%emt
00:00:05]} dxe5 {[%clk 01:32:10]} {[%emt 00:00:05]} 5. Nxe5 {[%clk 01:32:12]}
{[%emt 00:00:14]} c6 {[%clk 01:32:34]} {[%emt 00:00:08]} 6. Qf3 {[%clk
01:31:19]} {[%emt 00:01:20]} Be6 {[%clk 01:31:16]} {[%emt 00:01:46]} 7. c3
{[%clk 01:29:49]} {[%emt 00:01:59]} Nd7 {[%clk 01:30:45]} {[%emt 00:01:01]} 8.
Nxd7 {[%clk 01:29:11]} {[%emt 00:01:08]} Qxd7 {[%clk 01:30:39]} {[%emt
00:00:37]} 9. Be2 {[%clk 01:29:35]} {[%emt 00:00:31]} g6 {[%clk 01:29:07]}
{[%emt 00:01:36]} 10. Nd2 {[%clk 01:29:48]} {[%emt 00:00:40]} Bg7 {[%clk
01:28:42]} {[%emt 00:00:33]} 11. Ne4 {[%clk 01:30:08]} {[%emt 00:00:24]} Nf6
{[%clk 01:24:18]} {[%emt 00:04:39]} 12. Nc5 {[%clk 01:29:27]} {[%emt 00:01:11]}
Qc8 {[%clk 01:22:40]} {[%emt 00:02:28]} 13. Nxe6 {[%clk 01:28:09]} {[%emt
00:01:30]} Qxe6 {[%clk 01:22:55]} {[%emt 00:00:13]} 14. O-O {[%clk 01:28:33]}
{[%emt 00:00:37]} O-O {[%clk 01:22:41]} {[%emt 00:00:17]} 15. Bf4 {[%clk
01:28:29]} {[%emt 00:00:50]} Qd5 {[%clk 01:12:45]} {[%emt 00:10:59]} 16. Qd3
{[%clk 01:26:11]} {[%emt 00:01:56]} Rac8 {[%clk 01:08:34]} {[%emt 00:04:42]} 17.
Bf3 {[%clk 01:26:24]} {[%emt 00:00:15]} Qd7 {[%clk 01:08:48]} {[%emt 00:00:17]}
18. Rfd1 {[%clk 01:25:50]} {[%emt 00:01:02]} Rfd8 {[%clk 01:06:03]} {[%emt
00:03:15]} 19. Qe2 {[%clk 01:24:02]} {[%emt 00:02:19]} e6 {[%clk 01:04:06]}
{[%emt 00:02:36]} 20. Rac1 {[%clk 01:17:59]} {[%emt 00:06:24]} Nd5 {[%clk
00:59:25]} {[%emt 00:05:08]} 21. Bd2 {[%clk 01:17:03]} {[%emt 00:01:43]} Re8
{[%clk 00:56:55]} {[%emt 00:02:44]} 22. c4 {[%clk 01:17:18]} {[%emt 00:00:34]}
Ne7 {[%clk 00:55:21]} {[%emt 00:01:44]} 23. Bc3 {[%clk 01:17:23]} {[%emt
00:00:46]} Qc7 {[%clk 00:53:34]} {[%emt 00:01:57]} 24. Qc2 {[%clk 01:16:16]}
{[%emt 00:02:07]} Rcd8 {[%clk 00:50:27]} {[%emt 00:03:07]} 25. Qa4 {[%clk
01:07:00]} {[%emt 00:10:07]} Qb6 {[%clk 00:41:04]} {[%emt 00:09:53]} 26. c5
{[%clk 01:04:25]} {[%emt 00:02:45]} Qa6 {[%clk 00:39:23]} {[%emt 00:02:09]} 27.
Qxa6 {[%clk 01:04:25]} {[%emt 00:00:32]} bxa6 {[%clk 00:39:52]} {[%emt
00:00:04]} 28. Be2 {[%clk 01:04:30]} {[%emt 00:00:21]} Nf5 {[%clk 00:33:20]}
{[%emt 00:07:26]} 29. Bxa6 {[%clk 01:03:54]} {[%emt 00:01:02]} Bxd4 {[%clk
00:32:32]} {[%emt 00:00:57]} 30. Ba5 {[%clk 01:04:01]} {[%emt 00:00:24]} Rd5
{[%clk 00:27:48]} {[%emt 00:05:14]} 31. b4 {[%clk 00:58:36]} {[%emt 00:06:02]}
Rb8 {[%clk 00:26:31]} {[%emt 00:01:40]} 32. Bc4 {[%clk 00:56:09]} {[%emt
00:02:55]} Rd7 {[%clk 00:24:01]} {[%emt 00:03:02]} 33. a4 {[%clk 00:56:21]}
{[%emt 00:00:18]} Rdb7 {[%clk 00:19:09]} {[%emt 00:05:32]} 34. Ba6 {[%clk
00:55:12]} {[%emt 00:01:31]} Rxb4 {[%clk 00:18:52]} {[%emt 00:00:44]} 35. Bxb4
{[%clk 00:55:37]} {[%emt 00:00:09]} Rxb4 {[%clk 00:19:18]} {[%emt 00:00:09]} 36.
a5 {[%clk 00:54:05]} {[%emt 00:01:55]} Ra4 {[%clk 00:19:17]} {[%emt 00:00:32]}
37. Bd3 {[%clk 00:54:22]} {[%emt 00:00:13]} Ne7 {[%clk 00:17:30]} {[%emt
00:02:14]} 38. Bc4 {[%clk 00:51:16]} {[%emt 00:03:37]} Bxc5 {[%clk 00:13:15]}
{[%emt 00:04:46]} 39. Bxe6 {[%clk 00:51:32]} {[%emt 00:00:35]} Rxa5 {[%clk
00:12:45]} {[%emt 00:00:38]} 40. Bd7 {[%clk 00:51:10]} {[%emt 00:00:51]} Bb6
{[%clk 00:10:17]} {[%emt 00:02:59]} 41. Bxc6 {[%clk 00:50:52]} {[%emt
00:00:47]} Ra2 {[%clk 00:08:55]} {[%emt 00:01:54]} 42. Rf1 {[%clk 00:50:53]}
{[%emt 00:00:26]} Nf5 {[%clk 00:07:52]} {[%emt 00:01:37]} 43. g3 {[%clk
00:46:12]} {[%emt 00:05:21]} Nd4 {[%clk 00:07:34]} {[%emt 00:00:35]} 44. Kg2
{[%clk 00:46:32]} {[%emt 00:00:10]} Kg7 {[%clk 00:06:21]} {[%emt 00:01:44]} 45.
Bd5 {[%clk 00:45:36]} {[%emt 00:01:25]} Rb2 {[%clk 00:05:51]} {[%emt 00:01:01]}
46. g4 {[%clk 00:43:35]} {[%emt 00:02:31]} Ne2 {[%clk 00:05:35]} {[%emt
00:00:46]} 47. Rcd1 {[%clk 00:41:23]} {[%emt 00:03:08]} Nf4+ {[%clk 00:05:22]}
{[%emt 00:00:16]} 48. Kg3 {[%clk 00:39:33]} {[%emt 00:02:19]} g5 {[%clk
00:04:32]} {[%emt 00:01:24]} 49. h4 {[%clk 00:22:55]} {[%emt 00:17:04]} h6
{[%clk 00:03:54]} {[%emt 00:01:08]} 50. hxg5 {[%clk 00:22:56]} {[%emt
00:00:35]} hxg5 {[%clk 00:04:17]} {[%emt 00:00:04]} 51. Kf3 {[%clk 00:22:07]}
{[%emt 00:01:21]} Rc2 {[%clk 00:03:41]} {[%emt 00:01:02]} 52. Bb7 {[%clk
00:19:36]} {[%emt 00:03:00]} Rc7 {[%clk 00:03:31]} {[%emt 00:00:53]} 53. Ba6
{[%clk 00:19:57]} {[%emt 00:00:05]} Rc3+ {[%clk 00:03:23]} {[%emt 00:00:50]} 54.
Ke4 {[%clk 00:20:19]} {[%emt 00:00:10]} Ra3 {[%clk 00:03:20]} {[%emt 00:00:11]}
55. Ra1 {[%clk 00:19:31]} {[%emt 00:01:17]} Rc3 {[%clk 00:03:05]} {[%emt
00:00:49]} 56. Rfc1 {[%clk 00:19:12]} {[%emt 00:00:45]} Rb3 {[%clk 00:03:02]}
{[%emt 00:00:52]} 57. Bc4 {[%clk 00:18:02]} {[%emt 00:01:24]} Rb4 {[%clk
00:02:48]} {[%emt 00:00:41]} 58. Rab1 {[%clk 00:18:18]} {[%emt 00:00:14]} Ra4
{[%clk 00:02:52]} {[%emt 00:00:26]} 59. Kf5 {[%clk 00:17:40]} {[%emt 00:01:08]}
f6 {[%clk 00:01:55]} {[%emt 00:01:30]} 60. Rb2 {[%clk 00:17:01]} {[%emt
00:01:08]} Ra5+ {[%clk 00:00:45]} {[%emt 00:01:39]} 61. Rb5 {[%clk 00:15:31]}
{[%emt 00:01:59]} Ra3 {[%clk 00:01:07]} {[%emt 00:00:38]} 62. Bb3 {[%clk
00:15:17]} {[%emt 00:00:39]} Nd3 {[%clk 00:01:10]} {[%emt 00:00:02]} 63. Rc8
{[%clk 00:15:14]} {[%emt 00:00:33]} Ne5 {[%clk 00:00:40]} {[%emt 00:01:00]} 64.
Rg8+ {[%clk 00:13:56]} {[%emt 00:01:47]} Kh7 {[%clk 00:01:07]} {[%emt
00:00:18]} 65. Rb8 {[%clk 00:14:12]} {[%emt 00:00:15]} Kg7 {[%clk 00:00:48]}
{[%emt 00:01:01]} 66. Rb7+ {[%clk 00:14:19]} {[%emt 00:00:05]} Kh6 {[%clk
00:00:54]} {[%emt 00:00:15]} 67. f4 {[%clk 00:08:34]} {[%emt 00:06:16]} Nf3
{[%clk 00:00:37]} {[%emt 00:00:47]} 68. Kxf6 {[%clk 00:05:21]} {[%emt
00:03:42]} Bd4+ {[%clk 00:00:38]} {[%emt 00:00:29]} 69. Kf5 {[%clk 00:05:31]}
{[%emt 00:00:20]} Nh4+ {[%clk 00:00:58]} {[%emt 00:00:19]} 70. Ke4 {[%clk
00:05:55]} Bb6 {[%clk 00:00:52]} {[%emt 00:00:33]} 71. fxg5+ {[%clk 00:05:04]}
{[%emt 00:01:19]} Kg6 {[%clk 00:01:16]} {[%emt 00:00:10]} 72. Bf7+ {[%clk
00:05:14]} {[%emt 00:00:39]} Kg7 {[%clk 00:01:35]} {[%emt 00:00:08]} 73. Be8+
{[%clk 00:02:42]} {[%emt 00:02:46]} Kg8 {[%clk 00:01:31]} {[%emt 00:00:31]} 74.
Re5 {[%clk 00:02:42]} {[%emt 00:00:30]} Re3+ {[%clk 00:01:42]} {[%emt
00:00:40]} 75. Kd5 {[%clk 00:03:08]} {[%emt 00:00:08]} Ra3 {[%clk 00:01:27]}
{[%emt 00:00:19]} 76. Bf7+ {[%clk 00:03:26]} {[%emt 00:00:41]} Kg7 {[%clk
00:01:48]} {[%emt 00:00:09]} 77. Bh5+ {[%clk 00:03:50]} 1-0

[Event "Weekendtournooi Groningen & PK NOSBO"]
[Site "Groningen, Netherlands"]
[Date "2023.05.20"]
[Round "5.8"]
[White "Kardoeus, David"]
[Black "Remmerswaal, Wouter"]
[Result "1-0"]
[TimeControl "90min + 30sec/move"]
[WhiteElo "2158"]
[BlackElo "1798"]

1. e4 {[%clk 01:25:30]} {[%emt 00:05:24]} c6 {[%clk 01:30:57]} {[%emt
00:00:27]} 2. d4 {[%clk 01:25:35]} {[%emt 00:00:16]} d5 {[%clk 01:31:23]} 3. e5
{[%clk 01:26:00]} {[%emt 00:00:16]} c5 {[%clk 01:31:50]} 4. dxc5 {[%clk
01:26:06]} {[%emt 00:00:11]} e6 {[%clk 01:32:15]} {[%emt 00:00:11]} 5. a3
{[%clk 01:26:09]} {[%emt 00:00:26]} Bxc5 {[%clk 01:32:39]} {[%emt 00:00:04]} 6.
b4 {[%clk 01:26:31]} {[%emt 00:00:05]} Be7 {[%clk 01:33:03]} {[%emt 00:00:24]}
7. Qg4 {[%clk 01:26:20]} {[%emt 00:00:29]} g6 {[%clk 01:32:40]} {[%emt
00:00:50]} 8. h4 {[%clk 01:23:45]} {[%emt 00:03:08]} h5 {[%clk 01:27:29]}
{[%emt 00:05:35]} 9. Qg3 {[%clk 01:22:50]} {[%emt 00:01:47]} a5 {[%clk
01:25:11]} {[%emt 00:02:38]} 10. b5 {[%clk 01:22:09]} {[%emt 00:01:02]} Nd7
{[%clk 01:23:26]} {[%emt 00:02:12]} 11. Nf3 {[%clk 01:19:16]} {[%emt 00:03:22]}
b6 {[%clk 01:19:31]} {[%emt 00:04:25]} 12. Bd3 {[%clk 01:13:00]} {[%emt
00:07:02]} Bb7 {[%clk 01:19:10]} {[%emt 00:00:36]} 13. Bxg6 {[%clk 01:10:15]}
{[%emt 00:03:17]} Nh6 {[%clk 00:59:37]} {[%emt 00:20:14]} 14. Bxh5 {[%clk
00:48:10]} {[%emt 00:22:26]} Nf5 {[%clk 00:54:44]} {[%emt 00:05:19]} 15. Qg4
{[%clk 00:42:03]} {[%emt 00:06:36]} Qc7 {[%clk 00:49:27]} {[%emt 00:06:00]} 16.
Bf4 {[%clk 00:37:23]} {[%emt 00:05:02]} Nc5 {[%clk 00:37:19]} {[%emt 00:12:36]}
17. Nbd2 {[%clk 00:32:13]} {[%emt 00:05:36]} Kd7 {[%clk 00:35:35]} {[%emt
00:02:15]} 18. Bxf7 {[%clk 00:30:47]} {[%emt 00:01:59]} Raf8 {[%clk 00:33:41]}
{[%emt 00:02:22]} 19. Qg6 {[%clk 00:27:01]} {[%emt 00:04:17]} Bxh4 {[%clk
00:28:50]} {[%emt 00:05:20]} 20. Qxf5 {[%clk 00:22:50]} {[%emt 00:05:25]} Ke7
{[%clk 00:15:23]} {[%emt 00:13:38]} 21. Bg5+ {[%clk 00:22:34]} {[%emt
00:00:22]} Bxg5 {[%clk 00:15:41]} {[%emt 00:00:44]} 22. Qxg5+ {[%clk 00:22:53]}
{[%emt 00:00:13]} Kxf7 {[%clk 00:16:03]} 23. Qf6+ {[%clk 00:23:15]} 1-0

[Event "Weekendtournooi Groningen & PK NOSBO"]
[Site "Groningen, Netherlands"]
[Date "2023.05.20"]
[Round "5.9"]
[White "Karsdorp, Nico"]
[Black "Aden, Tammo"]
[Result "0-1"]
[TimeControl "90min + 30sec/move"]
[WhiteElo "1746"]
[BlackElo "1998"]

1. c4 {[%clk 01:30:56]} {[%emt 00:00:06]} e6 {[%clk 01:30:52]} {[%emt
00:00:06]} 2. Nc3 {[%clk 01:30:43]} {[%emt 00:00:58]} Nf6 {[%clk 01:31:10]} 3.
e4 {[%clk 01:28:21]} {[%emt 00:03:03]} d5 {[%clk 01:28:29]} {[%emt 00:03:00]} 4.
e5 {[%clk 01:27:36]} {[%emt 00:01:11]} Nfd7 {[%clk 01:28:14]} {[%emt 00:01:03]}
5. f4 {[%clk 01:25:26]} {[%emt 00:02:24]} dxc4 {[%clk 01:23:10]} {[%emt
00:05:38]} 6. Bxc4 {[%clk 01:24:48]} {[%emt 00:01:04]} Nxe5 {[%clk 01:22:28]}
{[%emt 00:01:12]} 7. fxe5 {[%clk 01:20:14]} {[%emt 00:05:07]} Qh4+ {[%clk
01:22:48]} {[%emt 00:00:06]} 8. g3 {[%clk 01:20:38]} {[%emt 00:00:07]} Qxc4
{[%clk 01:23:13]} {[%emt 00:00:07]} 9. d3 {[%clk 01:11:16]} {[%emt 00:09:49]}
Qc6 {[%clk 01:15:39]} {[%emt 00:08:15]} 10. Nf3 {[%clk 01:08:38]} {[%emt
00:03:01]} Bc5 {[%clk 01:13:22]} {[%emt 00:02:48]} 11. Ne4 {[%clk 01:05:57]}
{[%emt 00:03:15]} Nd7 {[%clk 01:10:29]} {[%emt 00:03:14]} 12. Bd2 {[%clk
01:01:39]} {[%emt 00:04:48]} Qd5 {[%clk 01:02:37]} {[%emt 00:08:22]} 13. Bc3
{[%clk 00:48:22]} {[%emt 00:13:47]} b6 {[%clk 00:56:04]} {[%emt 00:07:06]} 14.
b4 {[%clk 00:45:04]} {[%emt 00:03:43]} Be7 {[%clk 00:54:18]} {[%emt 00:02:18]}
15. a4 {[%clk 00:43:59]} {[%emt 00:01:35]} Bb7 {[%clk 00:51:56]} {[%emt
00:02:52]} 16. O-O {[%clk 00:43:32]} {[%emt 00:00:57]} c5 {[%clk 00:44:40]}
{[%emt 00:07:46]} 17. Nd6+ {[%clk 00:28:30]} {[%emt 00:15:38]} Bxd6 {[%clk
00:44:59]} {[%emt 00:00:10]} 18. exd6 {[%clk 00:28:58]} O-O {[%clk 00:43:37]}
{[%emt 00:01:49]} 19. d4 {[%clk 00:26:47]} {[%emt 00:02:42]} cxb4 {[%clk
00:35:22]} {[%emt 00:08:44]} 20. Bxb4 {[%clk 00:26:52]} {[%emt 00:00:24]} Rac8
{[%clk 00:35:41]} {[%emt 00:00:11]} 21. Qd2 {[%clk 00:19:30]} {[%emt 00:07:51]}
Rc4 {[%clk 00:33:39]} {[%emt 00:02:37]} 22. a5 {[%clk 00:17:04]} {[%emt
00:02:51]} Rfc8 {[%clk 00:32:21]} {[%emt 00:01:48]} 23. Rf2 {[%clk 00:14:46]}
{[%emt 00:02:49]} Nf6 {[%clk 00:27:03]} {[%emt 00:05:48]} 0-1

[Event "Weekendtournooi Groningen & PK NOSBO"]
[Site "Groningen, Netherlands"]
[Date "2023.05.20"]
[Round "5.10"]
[White "Bruggink, Tycho"]
[Black "De Vries, Arjan"]
[Result "1-0"]
[TimeControl "90min + 30sec/move"]
[WhiteElo "1873"]
[BlackElo "1592"]

1. e4 {[%clk 01:30:59]} {[%emt 00:00:04]} e5 {[%clk 01:30:38]} {[%emt
00:00:38]} 2. Nf3 {[%clk 01:31:26]} Nf6 {[%clk 01:31:04]} 3. Nxe5 {[%clk
01:31:52]} d6 {[%clk 01:31:30]} {[%emt 00:00:40]} 4. Nf3 {[%clk 01:32:01]} Nxe4
{[%clk 01:31:55]} 5. Nc3 {[%clk 01:32:29]} Nxc3 {[%clk 01:32:18]} 6. dxc3
{[%clk 01:32:56]} {[%emt 00:00:05]} Be7 {[%clk 01:32:44]} 7. Be3 {[%clk
01:33:22]} Nd7 {[%clk 01:33:08]} {[%emt 00:00:17]} 8. Qd2 {[%clk 01:32:59]}
{[%emt 00:00:42]} Ne5 {[%clk 01:33:29]} {[%emt 00:00:16]} 9. O-O-O {[%clk
01:28:33]} {[%emt 00:05:35]} Nxf3 {[%clk 01:32:10]} {[%emt 00:01:39]} 10. gxf3
{[%clk 01:28:59]} Be6 {[%clk 01:32:33]} 11. Qd4 {[%clk 01:27:05]} {[%emt
00:01:58]} Bf6 {[%clk 01:30:14]} {[%emt 00:02:49]} 12. Qb4 {[%clk 01:27:31]}
{[%emt 00:00:17]} Bg5 {[%clk 01:24:28]} {[%emt 00:06:02]} 13. Qxb7 {[%clk
01:25:02]} {[%emt 00:03:00]} Bxe3+ {[%clk 01:23:55]} {[%emt 00:01:08]} 14. fxe3
{[%clk 01:25:19]} {[%emt 00:00:32]} O-O {[%clk 01:24:21]} 15. Bd3 {[%clk
01:24:22]} {[%emt 00:01:07]} Qf6 {[%clk 01:23:50]} {[%emt 00:00:59]} 16. Qe4
{[%clk 01:23:29]} {[%emt 00:01:25]} g6 {[%clk 01:24:13]} {[%emt 00:00:08]} 17.
Qd4 {[%clk 01:23:54]} {[%emt 00:00:06]} Qe7 {[%clk 01:23:16]} {[%emt 00:01:23]}
18. c4 {[%clk 01:23:57]} {[%emt 00:00:44]} Rab8 {[%clk 01:19:56]} {[%emt
00:03:40]} 19. h4 {[%clk 01:24:09]} {[%emt 00:00:14]} c5 {[%clk 01:19:29]}
{[%emt 00:00:54]} 20. Qc3 {[%clk 01:24:26]} {[%emt 00:00:14]} Rb6 {[%clk
01:18:00]} {[%emt 00:01:58]} 21. h5 {[%clk 01:24:45]} {[%emt 00:00:50]} Qg5
{[%clk 01:16:17]} {[%emt 00:01:34]} 22. f4 {[%clk 01:23:53]} {[%emt 00:01:24]}
Qg3 {[%clk 01:16:32]} {[%emt 00:00:21]} 23. Be4 {[%clk 01:24:19]} Bxc4 {[%clk
01:16:38]} {[%emt 00:00:54]} 24. hxg6 {[%clk 01:24:13]} {[%emt 00:00:03]} fxg6
{[%clk 01:16:55]} {[%emt 00:00:13]} 25. Qxc4+ {[%clk 01:24:38]} {[%emt
00:00:40]} Kg7 {[%clk 01:17:17]} 26. Qc3+ {[%clk 01:24:49]} {[%emt 00:00:03]}
1-0

[Event "Weekendtournooi Groningen & PK NOSBO"]
[Site "Groningen, Netherlands"]
[Date "2023.05.20"]
[Round "5.11"]
[White "Van Foreest, Nanne"]
[Black "Blokzijl, Ruben"]
[Result "1-0"]
[TimeControl "90min + 30sec/move"]
[WhiteElo "1914"]
[BlackElo "1454"]

1. e4 {[%clk 01:30:59]} c6 {[%clk 01:30:55]} {[%emt 00:00:05]} 2. Nc3 {[%clk
01:31:23]} d5 {[%clk 01:31:16]} 3. Nf3 {[%clk 01:31:49]} Bg4 {[%clk 01:31:42]}
{[%emt 00:00:36]} 4. h3 {[%clk 01:31:50]} Bxf3 {[%clk 01:32:01]} {[%emt
00:00:27]} 5. Qxf3 {[%clk 01:32:13]} Nf6 {[%clk 01:32:14]} {[%emt 00:00:07]} 6.
e5 {[%clk 01:30:10]} {[%emt 00:02:30]} Nfd7 {[%clk 01:32:38]} {[%emt 00:00:31]}
7. d4 {[%clk 01:30:39]} e6 {[%clk 01:32:27]} {[%emt 00:00:17]} 8. Ne2 {[%clk
01:21:30]} {[%emt 00:09:42]} c5 {[%clk 01:31:34]} {[%emt 00:01:21]} 9. c3
{[%clk 01:21:58]} {[%emt 00:00:29]} Nc6 {[%clk 01:31:58]} 10. Qg4 {[%clk
01:19:13]} {[%emt 00:02:51]} Rc8 {[%clk 01:18:32]} {[%emt 00:13:56]} 11. f4
{[%clk 01:14:51]} {[%emt 00:04:53]} g6 {[%clk 01:15:12]} {[%emt 00:03:51]} 12.
Rb1 {[%clk 01:08:35]} {[%emt 00:07:10]} cxd4 {[%clk 01:11:48]} {[%emt
00:03:32]} 13. cxd4 {[%clk 01:05:37]} {[%emt 00:03:28]} Nb4 {[%clk 01:06:57]}
{[%emt 00:05:43]} 14. Qf3 {[%clk 00:58:30]} {[%emt 00:07:12]} Qa5 {[%clk
00:58:39]} {[%emt 00:09:32]} 15. Bd2 {[%clk 00:46:15]} {[%emt 00:12:35]} Nc2+
{[%clk 00:55:09]} {[%emt 00:03:43]} 16. Kd1 {[%clk 00:46:44]} Qxa2 {[%clk
00:55:31]} 17. Rc1 {[%clk 00:46:26]} {[%emt 00:00:40]} Qxb2 {[%clk 00:51:33]}
{[%emt 00:04:46]} 18. Qd3 {[%clk 00:45:02]} {[%emt 00:01:38]} Ba3 {[%clk
00:41:02]} {[%emt 00:11:34]} 19. Rxc2 {[%clk 00:45:00]} {[%emt 00:00:04]} Qb1+
{[%clk 00:41:04]} {[%emt 00:00:21]} 20. Nc1 {[%clk 00:45:11]} {[%emt 00:00:59]}
Rxc2 {[%clk 00:40:10]} {[%emt 00:00:43]} 21. Qxc2 {[%clk 00:45:35]} {[%emt
00:00:36]} Qxc2+ {[%clk 00:40:34]} 22. Kxc2 {[%clk 00:46:00]} O-O {[%clk
00:40:38]} {[%emt 00:00:11]} 23. Kb3 {[%clk 00:46:16]} {[%emt 00:00:17]} Bxc1
{[%clk 00:40:07]} {[%emt 00:00:54]} 24. Bxc1 {[%clk 00:46:40]} {[%emt
00:00:36]} Rc8 {[%clk 00:40:31]} {[%emt 00:00:04]} 25. Bd2 {[%clk 00:46:20]}
{[%emt 00:00:40]} Nb6 {[%clk 00:40:33]} {[%emt 00:00:17]} 26. Bd3 {[%clk
00:46:15]} {[%emt 00:00:29]} Nc4 {[%clk 00:40:40]} {[%emt 00:00:38]} 27. Bxc4
{[%clk 00:46:39]} dxc4+ {[%clk 00:41:07]} {[%emt 00:00:10]} 28. Kb4 {[%clk
00:46:49]} {[%emt 00:00:05]} a6 {[%clk 00:39:53]} {[%emt 00:01:43]} 29. Bc3
{[%clk 00:45:54]} {[%emt 00:01:33]} Rc6 {[%clk 00:37:09]} {[%emt 00:03:06]} 30.
Ka5 {[%clk 00:46:05]} {[%emt 00:00:37]} Kf8 {[%clk 00:37:07]} {[%emt 00:00:14]}
31. Bb4+ {[%clk 00:45:43]} {[%emt 00:00:52]} Ke8 {[%clk 00:37:35]} {[%emt
00:00:38]} 32. Bc5 {[%clk 00:44:49]} {[%emt 00:00:49]} Kd7 {[%clk 00:37:42]}
{[%emt 00:00:23]} 33. Rc1 {[%clk 00:45:11]} {[%emt 00:00:42]} Kc7 {[%clk
00:37:57]} {[%emt 00:00:05]} 34. Rxc4 {[%clk 00:45:30]} h5 {[%clk 00:37:30]}
{[%emt 00:00:43]} 35. Bd6+ {[%clk 00:45:29]} {[%emt 00:00:31]} Kd7 {[%clk
00:37:44]} {[%emt 00:00:43]} 36. Rb4 {[%clk 00:45:20]} {[%emt 00:00:49]} b5
{[%clk 00:37:39]} 37. Bc5 {[%clk 00:45:45]} {[%emt 00:00:08]} Kc7 {[%clk
00:37:43]} {[%emt 00:00:43]} 38. g4 {[%clk 00:46:04]} 1-0